bitfinex/quotes_BTCUSD_20240817
["timestamp","ask_amount","ask_price","bid_price","bid_amount"]
[1723857931919,0.000824,59321.0,59291.0,2.000754]
[1723857931920,1e-08,59299.0,59291.0,2.000754]
[1723857932122,1e-08,59299.0,59298.0,1.28858154]
[1723857932377,1e-08,59299.0,59298.0,2.45471552]
[1723857932589,1e-08,59299.0,59298.0,2.79199452]
[1723857933379,6e-07,59311.0,59310.0,1.93506]
[1723857933579,6e-07,59311.0,59310.0,2.6567386]
[1723857933836,6e-07,59311.0,59310.0,2.59812252]
[1723857934459,6e-07,59311.0,59310.0,2.57681203]
[1723857935384,6e-07,59311.0,59310.0,2.58681203]
[1723857935590,6e-07,59311.0,59310.0,2.60081203]
[1723857935794,6e-07,59311.0,59310.0,2.61104596]
[1723857935984,6e-07,59311.0,59310.0,2.61504596]
[1723857936187,6e-07,59311.0,59310.0,2.61501729]
[1723857936397,6e-07,59311.0,59310.0,2.58205947]
[1723857936587,6e-07,59311.0,59310.0,2.61501417]
[1723857936935,6e-07,59311.0,59310.0,2.59127039]
[1723857937132,6e-07,59311.0,59310.0,2.61501414]
[1723857937338,0.00046335,59311.0,59310.0,2.61501414]
[1723857938359,0.00046335,59311.0,59310.0,2.61301414]
[1723857938786,0.00046335,59311.0,59310.0,2.61501414]
[1723857939011,3.5e-07,59311.0,59310.0,2.61501414]
[1723857940354,3.5e-07,59313.0,59312.0,1.855594]
[1723857940595,3.5e-07,59313.0,59312.0,2.15289229]
[1723857940718,3.5e-07,59313.0,59312.0,2.16210321]
[1723857941526,3.5e-07,59313.0,59312.0,2.17810321]
[1723857942113,3.5e-07,59313.0,59312.0,2.25350321]
[1723857942323,3.5e-07,59321.0,59320.0,0.001]
[1723857942577,3.5e-07,59321.0,59320.0,2.17477221]
[1723857942780,3.5e-07,59321.0,59320.0,2.20772688]
[1723857943103,3.5e-07,59321.0,59320.0,2.30772688]
[1723857944308,3.5e-07,59321.0,59320.0,2.66387567]
[1723857944614,3.5e-07,59321.0,59320.0,2.66386366]
[1723857945291,0.00825,59323.0,59322.0,1.859286]
[1723857945292,3.5e-07,59323.0,59322.0,1.859286]
[1723857945503,3.5e-07,59323.0,59322.0,2.16377799]
[1723857945716,3.5e-07,59323.0,59322.0,2.24347799]
[1723857946491,3.5e-07,59323.0,59322.0,2.2797485]
[1723857946896,3.5e-07,59323.0,59322.0,2.2757485]
[1723857947466,3.5e-07,59323.0,59322.0,2.2777485]
[1723857947689,3.5e-07,59323.0,59322.0,2.25647799]
[1723857947902,3.5e-07,59323.0,59322.0,2.25647809]
[1723857948641,3.5e-07,59323.0,59322.0,2.25647844]
[1723857948847,3.5e-07,59323.0,59322.0,2.24847844]
[1723857949278,3.5e-07,59323.0,59322.0,2.25747898]
[1723857949617,3.5e-07,59323.0,59322.0,2.27147898]
[1723857949801,3.5e-07,59323.0,59322.0,2.28875057]
[1723857950316,3.5e-07,59323.0,59322.0,2.28875078]
[1723857950576,3.5e-07,59323.0,59322.0,2.28875127]
[1723857950777,3.5e-07,59323.0,59322.0,2.26747968]
[1723857951834,3.5e-07,59323.0,59322.0,2.26947968]
[1723857952644,3.5e-07,59323.0,59322.0,2.2907557]
[1723857953653,3.5e-07,59323.0,59322.0,2.2887557]
[1723857954056,3.5e-07,59323.0,59322.0,2.2907557]
[1723857954261,3.5e-07,59323.0,59322.0,2.2927557]
[1723857955143,3.5e-07,59323.0,59322.0,2.2787557]
[1723857955480,3.5e-07,59323.0,59322.0,2.2927557]
[1723857955917,3.5e-07,59323.0,59322.0,2.2787557]
[1723857956389,3.5e-07,59323.0,59322.0,2.2927557]
[1723857956892,3.5e-07,59323.0,59322.0,2.3265857]
[1723857957096,3.5e-07,59323.0,59322.0,2.30532462]
[1723857957329,3.5e-07,59323.0,59322.0,2.32660618]
[1723857957705,3.5e-07,59323.0,59322.0,2.31060618]
[1723857957864,3.5e-07,59323.0,59322.0,2.32660618]
[1723857958071,3.5e-07,59323.0,59322.0,2.31260618]
[1723857958542,3.5e-07,59323.0,59322.0,2.32660618]
[1723857958748,0.0647,59332.0,59330.0,1.516936]
[1723857958949,0.0647,59332.0,59330.0,1.81898255]
[1723857959085,0.0647,59332.0,59330.0,1.84272618]
[1723857959516,0.08455,59331.0,59330.0,1.67117164]
[1723857959672,0.08455,59331.0,59330.0,1.63821756]
[1723857959673,0.24215,59331.0,59330.0,1.63821756]
[1723857960266,0.24215,59331.0,59330.0,1.66621756]
[1723857960469,0.24215,59331.0,59330.0,1.68996119]
[1723857960886,0.24215,59331.0,59330.0,1.630936]
[1723857961086,0.24215,59331.0,59330.0,1.66621412]
[1723857961303,0.24215,59331.0,59330.0,1.65221444]
[1723857961508,0.24215,59331.0,59330.0,1.68995461]
[1723857961715,0.27215,59331.0,59330.0,0.55492344]
[1723857962130,0.27215,59331.0,59330.0,0.89202044]
[1723857962543,0.27215,59331.0,59330.0,0.87802044]
[1723857962749,0.27215,59331.0,59330.0,0.87302044]
[1723857963196,0.27215,59331.0,59330.0,0.87202044]
[1723857963616,0.17775,59331.0,59330.0,0.86402044]
[1723857963822,0.27215,59331.0,59330.0,0.86402044]
[1723857964042,0.27215,59331.0,59330.0,0.842742]
[1723857964281,0.27215,59331.0,59330.0,1.20112929]
[1723857964708,0.07145,59331.0,59330.0,1.32488251]
[1723857965124,0.07145,59331.0,59330.0,1.33509694]
[1723857965336,0.07145,59331.0,59330.0,1.33508728]
[1723857965538,0.07145,59331.0,59330.0,1.33408728]
[1723857965744,0.07145,59331.0,59330.0,1.67118428]
[1723857965873,0.07145,59331.0,59330.0,1.33508728]
[1723857966079,0.07145,59331.0,59330.0,1.33287285]
[1723857966451,0.07145,59331.0,59330.0,1.33187285]
[1723857966650,0.07145,59331.0,59330.0,1.68618428]
[1723857966928,0.00825,59331.0,59330.0,1.85773882]
[1723857967153,0.00825,59331.0,59330.0,1.86800822]
[1723857968132,0.00825,59331.0,59330.0,1.86800593]
[1723857970528,0.00825,59331.0,59330.0,1.35935439]
[1723857971658,0.00825,59331.0,59330.0,1.35934496]
[1723857972123,0.00825,59331.0,59330.0,1.6751611]
[1723857972780,0.00825,59331.0,59330.0,1.675162]
[1723857972990,0.00825,59331.0,59330.0,1.50961482]
[1723857973196,0.00825,59331.0,59330.0,1.92291182]
[1723857973393,0.00825,59331.0,59330.0,1.92291146]
[1723857974240,0.00825,59331.0,59330.0,1.92044919]
[1723857974441,0.00825,59331.0,59330.0,1.94419079]
[1723857975475,0.00825,59331.0,59330.0,1.86799079]
[1723857975648,0.00816572,59331.0,59330.0,1.86799079]
[1723857976706,0.00816572,59331.0,59330.0,1.86799259]
[1723857978216,0.00816572,59331.0,59330.0,1.53089559]
[1723857978657,0.00816572,59331.0,59330.0,1.86799259]
[1723857982252,0.00816572,59331.0,59330.0,1.84671226]
[1723857984377,0.00816572,59331.0,59330.0,1.89680078]
[1723857984755,0.00816572,59331.0,59330.0,1.89679714]
[1723857985155,0.00816572,59331.0,59330.0,1.89770244]
[1723857985350,0.00816572,59331.0,59330.0,1.89770238]
[1723857986437,0.00816572,59331.0,59330.0,1.84761386]
[1723857987132,0.00816572,59331.0,59330.0,1.86889116]
[1723857987327,0.00816572,59331.0,59330.0,1.94402395]
[1723857987843,0.00816572,59331.0,59330.0,1.94402306]
[1723857988047,0.00816572,59331.0,59330.0,1.94410232]
[1723857988501,0.00816572,59331.0,59330.0,2.21218305]
[1723857989017,0.00816572,59331.0,59330.0,2.18169773]
[1723857989252,0.00816572,59331.0,59330.0,2.21218029]
[1723857990168,0.10256572,59331.0,59330.0,1.87508329]
[1723857990405,0.16906572,59331.0,59330.0,1.51051426]
[1723857991124,0.24686572,59331.0,59330.0,1.51051426]
[1723857992574,0.24686572,59331.0,59330.0,0.89159332]
[1723857992816,0.24686572,59331.0,59330.0,0.88238514]
[1723857993086,0.24686572,59331.0,59330.0,0.8586473]
[1723857993321,0.24686572,59331.0,59330.0,0.87993842]
[1723857993977,0.24686572,59331.0,59330.0,0.97993842]
[1723857995159,0.24686572,59331.0,59330.0,0.9586473]
[1723857995759,0.24686572,59331.0,59330.0,0.98239928]
[1723857996042,0.24686572,59331.0,59330.0,0.9586473]
[1723857996244,0.24686572,59331.0,59330.0,0.97993459]
[1723857996984,0.24686572,59331.0,59330.0,0.97993552]
[1723857997466,0.24686572,59331.0,59330.0,0.97993607]
[1723857997708,0.15246572,59331.0,59330.0,1.31703307]
[1723857997910,0.24686572,59331.0,59330.0,1.31703307]
[1723857998427,0.24686572,59331.0,59330.0,1.34078505]
[1723857998689,0.24686572,59331.0,59330.0,1.31703307]
[1723858000979,0.24686572,59331.0,59330.0,1.2957443]
[1723858001298,0.24686572,59331.0,59330.0,1.31703351]
[1723858002269,0.24686572,59331.0,59330.0,0.97993651]
[1723858003265,0.24686572,59331.0,59330.0,0.9586473]
[1723858003441,0.16906572,59331.0,59330.0,0.9586473]
[1723858003647,0.16906572,59331.0,59330.0,1.2957443]
[1723858007249,0.16906572,59331.0,59330.0,1.30603454]
[1723858008282,0.16906572,59331.0,59330.0,1.2957443]
[1723858012174,0.25066572,59331.0,59330.0,1.2957443]
[1723858013137,0.25066572,59331.0,59330.0,0.9586473]
[1723858013579,0.25066572,59331.0,59330.0,1.2957443]
[1723858013854,0.25066572,59331.0,59330.0,0.9586473]
[1723858014130,0.25066572,59331.0,59330.0,1.2957443]
[1723858014365,0.25066572,59331.0,59330.0,0.9586473]
[1723858017345,0.25066572,59331.0,59330.0,0.2844533]
[1723858017594,0.25066572,59331.0,59330.0,0.6215503]
[1723858017989,0.25066572,59331.0,59330.0,0.6065503]
[1723858018348,0.25066572,59331.0,59330.0,0.6105503]
[1723858018557,0.27873229,59331.0,59330.0,0.0049053]
[1723858018751,0.25066572,59331.0,59330.0,0.1734533]
[1723858019412,0.25066572,59331.0,59330.0,0.1724533]
[1723858020289,0.25066572,59331.0,59330.0,0.1694533]
[1723858020707,0.15626572,59331.0,59330.0,0.1694533]
[1723858020905,0.25066572,59331.0,59330.0,0.1694533]
[1723858021134,0.25066572,59331.0,59330.0,0.0009053]
[1723858022971,0.25066572,59331.0,59330.0,0.02220565]
[1723858023495,0.25066572,59331.0,59330.0,0.0009053]
[1723858025393,0.15626572,59331.0,59330.0,0.5065503]
[1723858025598,0.07466572,59331.0,59330.0,0.8649471]
[1723858025804,0.16906572,59331.0,59330.0,0.8649471]
[1723858028728,0.16906572,59331.0,59330.0,0.86494662]
[1723858032463,0.16906572,59331.0,59330.0,0.8436473]
[1723858032892,0.16906572,59331.0,59330.0,0.86494642]
[1723858033303,0.16886286,59331.0,59330.0,0.86494653]
[1723858034912,0.16886286,59331.0,59330.0,0.86494648]
[1723858035257,0.16886286,59331.0,59330.0,0.52784948]
[1723858035485,0.16886286,59331.0,59330.0,0.1694533]
[1723858036091,0.25076286,59331.0,59330.0,0.1694533]
[1723858036691,0.25076286,59331.0,59330.0,0.0009053]
[1723858040117,0.41930786,59331.0,59330.0,0.02220396]
[1723858040390,0.41930786,59331.0,59330.0,0.0009053]
[1723858041424,0.25076286,59331.0,59330.0,0.0009053]
[1723858042610,0.25076286,59331.0,59330.0,0.02220389]
[1723858043709,0.25076286,59331.0,59330.0,0.0009053]
[1723858043912,0.00796286,59331.0,59330.0,0.5853503]
[1723858044120,0.10236286,59331.0,59330.0,0.5853503]
[1723858044556,0.10236286,59331.0,59330.0,0.6066441]
[1723858044761,0.10236286,59331.0,59330.0,0.5853503]
[1723858044959,0.10236286,59331.0,59330.0,0.60664392]
[1723858045170,0.00796286,59331.0,59330.0,0.94374092]
[1723858045381,0.00796286,59331.0,59330.0,1.4477975]
[1723858045613,0.00796286,59331.0,59330.0,1.47830223]
[1723858045789,0.00796286,59331.0,59330.0,1.53693963]
[1723858046019,0.00796286,59331.0,59330.0,1.47830223]
[1723858046226,0.00796286,59331.0,59330.0,1.48870536]
[1723858046535,0.00796286,59331.0,59330.0,1.54736352]
[1723858046955,0.00796286,59331.0,59330.0,1.5473687]
[1723858047569,0.00796286,59331.0,59330.0,1.46741509]
[1723858048209,0.00796286,59331.0,59330.0,1.47041509]
[1723858048831,0.00796286,59331.0,59330.0,1.47041905]
[1723858049040,0.00796286,59331.0,59330.0,1.47441905]
[1723858052997,0.00796286,59331.0,59330.0,1.46521229]
[1723858053243,0.00796286,59331.0,59330.0,1.47443104]
[1723858053661,0.00796286,59331.0,59330.0,1.98308258]
[1723858054260,0.00796286,59331.0,59330.0,1.97908258]
[1723858054499,0.00796286,59331.0,59330.0,1.97608258]
[1723858054708,0.00796286,59331.0,59330.0,1.98408258]
[1723858054915,0.00796286,59331.0,59330.0,1.99108258]
[1723858057661,0.00796286,59331.0,59330.0,1.99107972]
[1723858058495,0.00796286,59331.0,59330.0,1.41792818]
[1723858061166,0.00796286,59331.0,59330.0,1.41793191]
[1723858061370,0.10236286,59331.0,59330.0,1.41793191]
[1723858063721,0.10236286,59331.0,59330.0,1.40871401]
[1723858064719,0.10236286,59331.0,59330.0,1.41793454]
[1723858064958,0.00796286,59331.0,59330.0,1.92658608]
[1723858065172,0.10236286,59331.0,59330.0,1.4574676]
[1723858065345,0.10236286,59331.0,59330.0,1.48123618]
[1723858067310,0.10236286,59331.0,59330.0,1.98988772]
[1723858069105,0.10236286,59331.0,59330.0,1.9898835]
[1723858069585,0.10236286,59331.0,59330.0,1.96611914]
[1723858069777,0.10236286,59331.0,59330.0,1.98988114]
[1723858072596,0.10236286,59331.0,59330.0,1.92658114]
[1723858073215,0.10236286,59331.0,59330.0,1.90281809]
[1723858073555,0.10236286,59331.0,59330.0,1.92658361]
[1723858074535,0.10236286,59331.0,59330.0,1.96533274]
[1723858077166,0.00796286,59331.0,59330.0,1.96533274]
[1723858077517,0.00796286,59331.0,59330.0,2.08143314]
[1723858077720,0.00796286,59331.0,59330.0,2.09148681]
[1723858077904,0.00796286,59331.0,59330.0,2.21198567]
[1723858078103,0.00796286,59331.0,59330.0,2.80755038]
[1723858078327,0.00796286,59331.0,59330.0,2.89160302]
[1723858078524,0.00796286,59331.0,59330.0,2.89307693]
[1723858078941,0.00796286,59331.0,59330.0,2.89507693]
[1723858079144,0.00796286,59331.0,59330.0,2.88707693]
[1723858079344,0.00796286,59331.0,59330.0,2.88907693]
[1723858079672,0.00796286,59331.0,59330.0,2.89707693]
[1723858079872,0.00796286,59331.0,59330.0,2.89007693]
[1723858080023,0.00796286,59331.0,59330.0,2.89207693]
[1723858080218,0.00796286,59331.0,59330.0,2.88207693]
[1723858080449,0.00796286,59331.0,59330.0,2.89607781]
[1723858080622,0.00796286,59331.0,59330.0,2.91007781]
[1723858081034,0.00796286,59331.0,59330.0,2.85104031]
[1723858081414,0.00796286,59331.0,59330.0,2.67917707]
[1723858081619,0.00796286,59331.0,59330.0,2.68839044]
[1723858081878,0.00796286,59331.0,59330.0,2.8272805]
[1723858082165,0.00796286,59331.0,59330.0,2.85103226]
[1723858082581,0.00796286,59331.0,59330.0,2.91000069]
[1723858083313,0.00796286,59331.0,59330.0,2.80983696]
[1723858083866,0.00796286,59331.0,59330.0,2.50894753]
[1723858084066,0.00796286,59331.0,59330.0,2.09338986]
[1723858084241,0.00796286,59331.0,59330.0,2.19889193]
[1723858084439,0.00796286,59331.0,59330.0,2.04329043]
[1723858084670,0.00796286,59331.0,59330.0,2.04331465]
[1723858085422,0.00796286,59331.0,59330.0,2.09341408]
[1723858085691,0.00796286,59331.0,59330.0,2.04331465]
[1723858086307,0.00796286,59331.0,59330.0,2.09344095]
[1723858086639,0.00796286,59331.0,59330.0,2.04331465]
[1723858086838,0.00796286,59331.0,59330.0,2.09344048]
[1723858087246,0.00796286,59331.0,59330.0,2.04331465]
[1723858088272,0.00796286,59331.0,59330.0,2.3823263]
[1723858088878,0.00796286,59331.0,59330.0,2.38232909]
[1723858089280,0.00796286,59331.0,59330.0,2.30713964]
[1723858089763,0.00796286,59331.0,59330.0,2.24213964]
[1723858089937,0.00796286,59331.0,59330.0,2.26343774]
[1723858090285,0.00796286,59331.0,59330.0,2.36369034]
[1723858090686,0.00796286,59331.0,59330.0,2.36397923]
[1723858091365,0.00796286,59331.0,59330.0,2.26362009]
[1723858091712,0.00796286,59331.0,59330.0,2.38906902]
[1723858093409,0.00796286,59331.0,59330.0,2.36777092]
[1723858093626,0.00796286,59331.0,59330.0,2.38910783]
[1723858094049,0.00796286,59331.0,59330.0,2.35034021]
[1723858094263,0.00796286,59331.0,59330.0,2.38908118]
[1723858094894,0.00796286,59331.0,59330.0,2.36913183]
[1723858095106,0.00796286,59331.0,59330.0,2.70922883]
[1723858095314,0.00796286,59331.0,59330.0,2.37213183]
[1723858095524,0.00796286,59331.0,59330.0,2.3697118]
[1723858095733,0.00796286,59331.0,59330.0,2.7038088]
[1723858095948,0.00796286,59331.0,59330.0,2.3667118]
[1723858096352,0.00796286,59331.0,59330.0,2.3677118]
[1723858096767,0.00796286,59331.0,59330.0,2.3667118]
[1723858096969,0.00796286,59331.0,59330.0,2.7038088]
[1723858097178,0.00796286,59331.0,59330.0,2.7048088]
[1723858097856,0.00796286,59331.0,59330.0,2.67429149]
[1723858098074,0.00796286,59331.0,59330.0,2.7068102]
[1723858098756,0.00787859,59331.0,59330.0,2.7068102]
[1723858099175,0.00787859,59331.0,59330.0,2.71386668]
[1723858099377,0.00787859,59331.0,59330.0,2.7038102]
[1723858099592,0.00787859,59331.0,59330.0,2.7048102]
[1723858099841,0.00787859,59331.0,59330.0,2.7068102]
[1723858100690,0.00787859,59331.0,59330.0,2.7680102]
[1723858101567,0.00787859,59331.0,59330.0,2.77806668]
[1723858101768,0.00787859,59331.0,59330.0,2.7680102]
[1723858102171,0.00787859,59331.0,59330.0,2.76799345]
[1723858104084,0.00787859,59331.0,59330.0,2.76499345]
[1723858104461,5.9e-07,59331.0,59330.0,2.77528788]
[1723858104688,5.9e-07,59331.0,59330.0,2.80811788]
[1723858105136,5.9e-07,59331.0,59330.0,2.79906393]
[1723858105348,5.9e-07,59331.0,59330.0,2.78111788]
[1723858105564,5.9e-07,59331.0,59330.0,2.79511788]
[1723858106093,5.9e-07,59331.0,59330.0,2.71161761]
[1723858106310,5.9e-07,59331.0,59330.0,2.70156366]
[1723858106871,5.9e-07,59331.0,59330.0,2.71556366]
[1723858107027,5.9e-07,59331.0,59330.0,2.73986007]
[1723858107230,5.9e-07,59331.0,59330.0,2.7306476]
[1723858107433,5.9e-07,59331.0,59330.0,2.74991832]
[1723858107900,5.9e-07,59331.0,59330.0,2.74691832]
[1723858108051,5.9e-07,59331.0,59330.0,2.40982132]
[1723858108870,5.9e-07,59331.0,59330.0,2.74691832]
[1723858109092,5.9e-07,59331.0,59330.0,2.74991832]
[1723858109869,5.9e-07,59331.0,59330.0,2.81371832]
[1723858110255,5.9e-07,59331.0,59330.0,2.81471832]
[1723858110477,5.9e-07,59331.0,59330.0,2.81571832]
[1723858111081,5.9e-07,59331.0,59330.0,2.80566403]
[1723858112269,5.9e-07,59331.0,59330.0,2.86465385]
[1723858113422,5.9e-07,59331.0,59330.0,2.86409618]
[1723858116236,5.9e-07,59331.0,59330.0,2.79529618]
[1723858116471,5.9e-07,59331.0,59330.0,2.73630636]
[1723858117721,5.9e-07,59331.0,59330.0,2.73730636]
[1723858118379,5.9e-07,59331.0,59330.0,2.73781158]
[1723858119172,5.9e-07,59331.0,59330.0,2.7629714]
[1723858119811,5.9e-07,59331.0,59330.0,2.7619714]
[1723858120361,5.9e-07,59331.0,59330.0,2.7489714]
[1723858120492,5.9e-07,59331.0,59330.0,2.6109681]
[1723858120695,5.9e-07,59331.0,59330.0,2.69819413]
[1723858120896,5.9e-07,59331.0,59330.0,2.73692176]
[1723858121098,5.9e-07,59331.0,59330.0,2.76491066]
[1723858121401,5.9e-07,59331.0,59330.0,2.91541617]
[1723858121573,5.9e-07,59331.0,59330.0,2.84245006]
[1723858121778,5.9e-07,59331.0,59330.0,2.91541617]
[1723858121979,5.9e-07,59331.0,59330.0,2.85645006]
[1723858122182,5.9e-07,59331.0,59330.0,2.91541617]
[1723858122546,5.9e-07,59331.0,59330.0,2.92603578]
[1723858122775,5.9e-07,59331.0,59330.0,2.86706967]
[1723858122979,5.9e-07,59331.0,59330.0,2.92603578]
[1723858123179,5.9e-07,59331.0,59330.0,2.86706967]
[1723858123379,5.9e-07,59331.0,59330.0,2.77549941]
[1723858123723,5.9e-07,59331.0,59330.0,2.7165333]
[1723858123937,5.9e-07,59331.0,59330.0,2.77549941]
[1723858124136,5.9e-07,59331.0,59330.0,2.77547772]
[1723858125242,5.9e-07,59331.0,59330.0,2.77541104]
[1723858125444,5.9e-07,59331.0,59330.0,2.75413257]
[1723858125648,5.9e-07,59331.0,59330.0,2.84575391]
[1723858125851,5.9e-07,59331.0,59330.0,2.90469414]
[1723858126016,5.9e-07,59331.0,59330.0,2.84575391]
[1723858126220,5.9e-07,59331.0,59330.0,2.90469414]
[1723858126421,5.9e-07,59331.0,59330.0,2.92597446]
[1723858126629,5.9e-07,59331.0,59330.0,2.77541289]
[1723858127610,5.9e-07,59331.0,59330.0,2.91197184]
[1723858127856,5.9e-07,59331.0,59330.0,2.89797184]
[1723858128034,5.9e-07,59331.0,59330.0,2.83903161]
[1723858128173,5.9e-07,59331.0,59330.0,2.89797184]
[1723858128379,5.9e-07,59331.0,59330.0,2.91197184]
[1723858128842,5.9e-07,59331.0,59330.0,2.92597184]
[1723858129491,5.9e-07,59331.0,59330.0,2.92596854]
[1723858129818,5.9e-07,59331.0,59330.0,2.91196854]
[1723858130245,5.9e-07,59331.0,59330.0,2.92596854]
[1723858131224,5.9e-07,59331.0,59330.0,2.86702831]
[1723858131508,5.9e-07,59331.0,59330.0,2.77540959]
[1723858132494,0.05058937,59356.0,59330.0,2.77540959]
[1723858132496,5.9e-07,59347.0,59346.0,0.168503]
[1723858132608,5.9e-07,59347.0,59346.0,1.49367249]
[1723858132819,5.9e-07,59347.0,59346.0,2.8412301]
[1723858133042,0.0615,59361.0,59358.0,0.842345]
[1723858133252,0.0615,59361.0,59358.0,2.18844842]
[1723858133470,0.0615,59361.0,59358.0,2.49241312]
[1723858133672,0.0615,59361.0,59358.0,2.52532314]
[1723858134115,0.0615,59361.0,59358.0,2.52532398]
[1723858134321,0.0615,59361.0,59358.0,2.22891702]
[1723858134493,0.0615,59361.0,59358.0,2.24291702]
[1723858135078,0.0615,59361.0,59358.0,1.85593949]
[1723858135884,0.0615,59361.0,59358.0,1.86993949]
[1723858137794,0.0615,59361.0,59358.0,1.84868649]
[1723858138002,0.0615,59361.0,59358.0,1.86993995]
[1723858138970,0.0615,59361.0,59358.0,1.69838541]
[1723858139413,0.1559,59361.0,59358.0,1.69838541]
[1723858139609,0.1559,59361.0,59358.0,1.6983867]
[1723858139902,0.1559,59361.0,59358.0,1.68918769]
[1723858140094,0.0091134,59359.0,59358.0,1.68918769]
[1723858140795,0.0091134,59359.0,59358.0,1.69838667]
[1723858140999,0.0091134,59359.0,59358.0,1.86994121]
[1723858141624,0.0091134,59359.0,59358.0,1.92908743]
[1723858141826,0.0091134,59359.0,59358.0,1.9503415]
[1723858142245,0.0091134,59359.0,59358.0,1.9363415]
[1723858142654,0.0091134,59359.0,59358.0,1.9503415]
[1723858142897,0.0091134,59359.0,59358.0,2.2872795]
[1723858143109,0.0091134,59359.0,59358.0,1.99487402]
[1723858143316,0.0091134,59359.0,59358.0,1.9503415]
[1723858143515,0.0091134,59359.0,59358.0,1.9363415]
[1723858143946,0.0091134,59359.0,59358.0,1.9503415]
[1723858144156,0.0091134,59359.0,59358.0,1.9363415]
[1723858144358,4e-07,59359.0,59358.0,2.3384795]
[1723858144565,4e-07,59359.0,59358.0,2.42641436]
[1723858144773,4e-07,59359.0,59358.0,2.35522543]
[1723858144982,4e-07,59359.0,59358.0,2.3554711]
[1723858145178,4e-07,59359.0,59358.0,2.40437605]
[1723858145453,4e-07,59359.0,59358.0,2.39137715]
[1723858145658,4e-07,59359.0,59358.0,2.3554722]
[1723858146000,4e-07,59359.0,59358.0,2.3414722]
[1723858146203,4e-07,59359.0,59358.0,2.34147193]
[1723858146415,4e-07,59359.0,59358.0,2.43587193]
[1723858146622,4e-07,59359.0,59358.0,2.44987193]
[1723858147051,4e-07,59359.0,59358.0,2.38167193]
[1723858147270,4e-07,59359.0,59358.0,2.38467193]
[1723858147468,4e-07,59359.0,59358.0,2.29027193]
[1723858148330,4e-07,59359.0,59358.0,2.28727193]
[1723858148507,0.0634004,59359.0,59358.0,1.76993393]
[1723858148701,0.0634004,59359.0,59358.0,1.76073597]
[1723858148882,0.0634004,59359.0,59358.0,1.73702204]
[1723858149128,0.0634004,59359.0,59358.0,1.72302204]
[1723858149480,0.0634004,59359.0,59358.0,1.73702204]
[1723858149862,0.0634004,59359.0,59358.0,1.70902204]
[1723858150063,4e-07,59359.0,59358.0,1.81213795]
[1723858150310,4e-07,59359.0,59358.0,1.84633533]
[1723858150499,4e-07,59359.0,59358.0,1.94633533]
[1723858150645,4e-07,59359.0,59358.0,2.28327333]
[1723858151067,4e-07,59371.0,59370.0,1.516915]
[1723858151387,4e-07,59371.0,59370.0,2.39388342]
[1723858151601,4e-07,59371.0,59370.0,2.75746933]
[1723858151785,4e-07,59371.0,59370.0,2.75946933]
[1723858151941,4e-07,59371.0,59370.0,2.66506933]
[1723858152145,4e-07,59371.0,59370.0,2.71246577]
[1723858152855,4e-07,59371.0,59370.0,2.82271723]
[1723858153120,4e-07,59371.0,59370.0,2.71441413]
[1723858153320,4e-07,59371.0,59370.0,2.8226553]
[1723858153471,4e-07,59371.0,59370.0,2.72041413]
[1723858153679,4e-07,59371.0,59370.0,2.71641413]
[1723858154046,4e-07,59371.0,59370.0,2.72641413]
[1723858154460,4e-07,59371.0,59370.0,2.8684353]
[1723858154652,4e-07,59371.0,59370.0,2.82065798]
[1723858154859,4e-07,59371.0,59370.0,2.82889798]
[1723858155082,4e-07,59371.0,59370.0,2.82089798]
[1723858155290,4e-07,59371.0,59370.0,2.82089536]
[1723858155529,4e-07,59371.0,59370.0,2.82989536]
[1723858155968,4e-07,59371.0,59370.0,2.82089536]
[1723858156179,4e-07,59371.0,59370.0,2.82689536]
[1723858156614,4e-07,59371.0,59370.0,2.80711536]
[1723858156793,4e-07,59371.0,59370.0,2.81289233]
[1723858157000,4e-07,59371.0,59370.0,2.84089233]
[1723858157198,4e-07,59371.0,59370.0,2.69454598]
[1723858157410,4e-07,59371.0,59370.0,2.79311153]
[1723858157562,4e-07,59371.0,59370.0,2.84089153]
[1723858158209,4e-07,59371.0,59370.0,2.72689153]
[1723858158408,4e-07,59371.0,59370.0,2.84089153]
[1723858159179,4e-07,59371.0,59370.0,2.7824298]
[1723858160851,4e-07,59371.0,59370.0,2.62176616]
[1723858161054,4e-07,59371.0,59370.0,2.63095339]
[1723858161279,4e-07,59371.0,59370.0,2.63195339]
[1723858161481,4e-07,59371.0,59370.0,2.68193316]
[1723858161617,4e-07,59371.0,59370.0,2.68093316]
[1723858161820,4e-07,59371.0,59370.0,2.66693316]
[1723858162265,4e-07,59371.0,59370.0,2.68093316]
[1723858162517,4e-07,59371.0,59370.0,2.68193316]
[1723858162721,4e-07,59371.0,59370.0,2.61695339]
[1723858163367,4e-07,59371.0,59370.0,2.63095339]
[1723858163568,4e-07,59371.0,59370.0,2.61695339]
[1723858163777,4e-07,59371.0,59370.0,2.61795339]
[1723858163986,4e-07,59371.0,59370.0,1.87781339]
[1723858164151,4e-07,59371.0,59370.0,1.86957339]
[1723858164777,4e-07,59371.0,59370.0,1.84157339]
[1723858164988,4e-07,59371.0,59370.0,1.91499087]
[1723858165233,4e-07,59371.0,59370.0,1.92899087]
[1723858165438,4e-07,59371.0,59370.0,1.87050066]
[1723858165641,4e-07,59371.0,59370.0,1.85650066]
[1723858165931,4e-07,59371.0,59370.0,1.87050066]
[1723858166286,4e-07,59371.0,59370.0,1.85650066]
[1723858166632,4e-07,59371.0,59370.0,1.77050066]
[1723858166782,4e-07,59371.0,59370.0,1.5660608]
[1723858166783,0.1420004,59371.0,59370.0,1.5660608]
[1723858166989,0.1420004,59371.0,59370.0,1.5520608]
[1723858167550,0.1420004,59371.0,59370.0,1.5660608]
[1723858168078,0.1420004,59371.0,59370.0,1.5380608]
[1723858168258,0.1420004,59371.0,59370.0,1.5430608]
[1723858168736,0.1420004,59371.0,59370.0,1.2011908]
[1723858168935,0.1420004,59371.0,59370.0,1.1849514]
[1723858169142,0.1420004,59371.0,59370.0,1.20620312]
[1723858169571,0.1420004,59371.0,59370.0,1.30920254]
[1723858169772,0.1420004,59371.0,59370.0,1.30620254]
[1723858170123,0.1420004,59371.0,59370.0,1.30920291]
[1723858170783,0.1420004,59371.0,59370.0,1.64607291]
[1723858174700,0.0615004,59371.0,59370.0,1.64607291]
[1723858176871,0.1379004,59371.0,59370.0,1.64607291]
[1723858182132,0.1379004,59371.0,59370.0,1.6248214]
[1723858182341,0.1379004,59371.0,59370.0,1.64606951]
[1723858185377,0.0615004,59371.0,59370.0,1.64606951]
[1723858189900,0.0615004,59371.0,59370.0,1.64607101]
[1723858190904,0.0615004,59371.0,59370.0,1.30920101]
[1723858191102,0.1744004,59371.0,59370.0,0.53546101]
[1723858191457,0.1744004,59371.0,59370.0,0.5142114]
[1723858191840,0.1744004,59371.0,59370.0,0.87234115]
[1723858192179,0.1744004,59371.0,59370.0,0.53547115]
[1723858192376,0.1744004,59371.0,59370.0,0.87234115]
[1723858192591,0.1744004,59371.0,59370.0,0.86734115]
[1723858193021,0.1744004,59371.0,59370.0,0.86434115]
[1723858194517,0.1744004,59371.0,59370.0,0.8430814]
[1723858194699,0.1744004,59371.0,59370.0,0.86434076]
[1723858198524,0.1744004,59371.0,59370.0,0.86434077]